[Event "*** Titled Tuesday Blitz"]
[Site "Chess.com"]
[Date "2019.06.04"]
[Round "3"]
[White "LarissaSteenbekkers"]
[Black "chesstatour"]
[Result "0-1"]
[WhiteElo "1962"]
[BlackElo "2040"]
[TimeControl "180+2"]
[EndTime "13:39:10 PDT"]
[Termination "chesstatour won by resignation"]

1. e4 {[%clk 0:03:01.9]} 1... c6 {[%clk 0:03:00.3]} 2. c4 {[%clk 0:02:59.7]}
2... d5 {[%clk 0:03:01.8]} 3. cxd5 {[%clk 0:02:59.8]} 3... cxd5 {[%clk
0:03:03.7]} 4. exd5 {[%clk 0:02:54.5]} 4... Nf6 {[%clk 0:03:04.3]} 5. Nc3 {[%clk
0:02:54.8]} 5... Nxd5 {[%clk 0:02:59.3]} 6. Nf3 {[%clk 0:02:54]} 6... Nc6 {[%clk
0:02:59.7]} 7. Bb5 {[%clk 0:02:52]} 7... a6 {[%clk 0:02:42.6]} 8. Bxc6+ {[%clk
0:02:51.1]} 8... bxc6 {[%clk 0:02:44.5]} 9. O-O {[%clk 0:02:50.5]} 9... e6
{[%clk 0:02:32.2]} 10. Ne5 {[%clk 0:02:35.5]} 10... Bd6 {[%clk 0:02:16.8]} 11.
Nxc6 {[%clk 0:02:30.7]} 11... Bxh2+ {[%clk 0:01:38.8]} 12. Kxh2 {[%clk
0:02:22.8]} 12... Qd6+ {[%clk 0:01:36.2]} 13. Kg1 {[%clk 0:02:22.7]} 13... Qxc6
{[%clk 0:01:37.1]} 14. d4 {[%clk 0:02:23.4]} 14... O-O {[%clk 0:01:36]} 15. Ne4
{[%clk 0:02:06.5]} 15... Bb7 {[%clk 0:01:16.3]} 16. Qf3 {[%clk 0:01:58]} 16...
Ne7 {[%clk 0:00:54.9]} 17. Ng5 {[%clk 0:01:47]} 17... Qxf3 {[%clk 0:00:40.3]}
18. Nxf3 {[%clk 0:01:46]} 18... Bxf3 {[%clk 0:00:40.8]} 19. gxf3 {[%clk
0:01:45.9]} 19... Rfd8 {[%clk 0:00:41]} 20. Be3 {[%clk 0:01:44.6]} 20... Rab8
{[%clk 0:00:40.3]} 21. b3 {[%clk 0:01:43.6]} 21... Rd5 {[%clk 0:00:38.5]} 22.
Rfc1 {[%clk 0:01:41.4]} 22... Rb7 {[%clk 0:00:32.9]} 23. Rc4 {[%clk 0:01:37.3]}
23... f6 {[%clk 0:00:32.3]} 24. Rac1 {[%clk 0:01:35.3]} 24... Kf7 {[%clk
0:00:28.9]} 25. Rc7 {[%clk 0:01:33.4]} 25... Rd7 {[%clk 0:00:25.4]} 26. Rc8
{[%clk 0:01:31]} 26... Nxc8 {[%clk 0:00:24.5]} 27. Rxc8 {[%clk 0:01:29.7]} 27...
h6 {[%clk 0:00:12.1]} 28. Ra8 {[%clk 0:01:28.7]} 28... Ra7 {[%clk 0:00:11.4]}
29. Rb8 {[%clk 0:01:28.3]} 29... Rab7 {[%clk 0:00:09.5]} 30. Ra8 {[%clk
0:01:28.3]} 30... Rd6 {[%clk 0:00:10.8]} 31. Kf1 {[%clk 0:01:25.9]} 31... g5
{[%clk 0:00:12]} 32. Ke2 {[%clk 0:01:25.9]} 32... Kg6 {[%clk 0:00:13.1]} 33.
Rg8+ {[%clk 0:01:23.9]} 33... Kf5 {[%clk 0:00:13.8]} 34. Rh8 {[%clk 0:01:24.3]}
34... Rc7 {[%clk 0:00:12.3]} 35. Rxh6 {[%clk 0:01:23.3]} 35... Rc2+ {[%clk
0:00:12.6]} 36. Kd3 {[%clk 0:01:21.9]} 36... Rxa2 {[%clk 0:00:13.4]} 37. Kc4
{[%clk 0:01:22.7]} 37... Rc2+ {[%clk 0:00:12.1]} 38. Kb4 {[%clk 0:01:22.7]}
38... Rd5 {[%clk 0:00:11.2]} 39. Rh8 {[%clk 0:01:18.8]} 39... Rb5+ {[%clk
0:00:12.1]} 40. Ka3 {[%clk 0:01:18.1]} 40... Rc3 {[%clk 0:00:13.1]} 41. d5
{[%clk 0:01:15.6]} 41... Rbxb3+ {[%clk 0:00:12.1]} 42. Ka4 {[%clk 0:01:12.8]}
42... exd5 {[%clk 0:00:10.9]} 43. Rd8 {[%clk 0:01:09.6]} 43... Ke6 {[%clk
0:00:09.3]} 44. Re8+ {[%clk 0:01:08.9]} 44... Kd7 {[%clk 0:00:09.6]} 45. Rf8
{[%clk 0:01:08.9]} 45... Ke7 {[%clk 0:00:07.7]} 46. Bc5+ {[%clk 0:01:05.2]}
46... Ke6 {[%clk 0:00:06.3]} 47. Bb4 {[%clk 0:00:59.1]} 47... Rd3 {[%clk
0:00:05.8]} 48. Ra8 {[%clk 0:00:57]} 48... Kf5 {[%clk 0:00:05.6]} 49. Rxa6
{[%clk 0:00:57.3]} 49... Rxf3 {[%clk 0:00:06.7]} 50. Be7 {[%clk 0:00:56.4]}
50... Ke5 {[%clk 0:00:06.4]} 51. Bd6+ {[%clk 0:00:54.4]} 51... Ke4 {[%clk
0:00:05.9]} 52. Be7 {[%clk 0:00:53.2]} 52... Rbd3 {[%clk 0:00:05.4]} 53. Bxf6
{[%clk 0:00:51.7]} 53... g4 {[%clk 0:00:04.1]} 54. Bh4 {[%clk 0:00:50.8]} 54...
Rd1 {[%clk 0:00:04.7]} 55. Re6+ {[%clk 0:00:48.4]} 55... Kd3 {[%clk 0:00:05.7]}
56. Rg6 {[%clk 0:00:47.2]} 56... Rf4+ {[%clk 0:00:06.2]} 57. Kb5 {[%clk
0:00:42.7]} 57... Rc4 {[%clk 0:00:07]} 58. Rg5 {[%clk 0:00:40.9]} 58... Rb1+
{[%clk 0:00:07.8]} 59. Ka5 {[%clk 0:00:39.2]} 59... Rc5+ {[%clk 0:00:05.4]} 60.
Ka4 {[%clk 0:00:36.9]} 60... Kc4 {[%clk 0:00:05.2]} 61. Rxg4+ {[%clk 0:00:35.5]}
61... d4 {[%clk 0:00:06.5]} 62. Rg3 {[%clk 0:00:27.5]} 62... Ra1+ {[%clk
0:00:06.2]} 63. Ra3 {[%clk 0:00:27.6]} 63... Ra5+ {[%clk 0:00:05.9]} 64. Kxa5
{[%clk 0:00:27.4]} 64... Rxa3+ {[%clk 0:00:07.6]} 65. Kb6 {[%clk 0:00:28.1]}
65... Kd5 {[%clk 0:00:07.7]} 66. Kb5 {[%clk 0:00:28.2]} 66... Rb3+ {[%clk
0:00:08.5]} 67. Ka4 {[%clk 0:00:28.1]} 67... Rb1 {[%clk 0:00:10.1]} 68. Ka3
{[%clk 0:00:28.6]} 68... Ke4 {[%clk 0:00:11]} 69. Bg5 {[%clk 0:00:28]} 69... Kf3
{[%clk 0:00:10.6]} 70. Bh4 {[%clk 0:00:27.8]} 70... d3 {[%clk 0:00:11.4]} 71.
Ka2 {[%clk 0:00:28.8]} 71... Rb7 {[%clk 0:00:11.4]} 72. Bg5 {[%clk 0:00:27.5]}
72... Kxf2 {[%clk 0:00:11.4]} 0-1

[Event "*** Titled Tuesday Blitz"]
[Site "Chess.com"]
[Date "2019.06.04"]
[Round "3"]
[White "armago"]
[Black "Makalexa"]
[Result "1/2-1/2"]
[WhiteElo "2074"]
[BlackElo "2177"]
[TimeControl "180+2"]
[EndTime "13:39:23 PDT"]
[Termination "Game drawn by repetition"]

1. d4 {[%clk 0:03:01.9]} 1... Nf6 {[%clk 0:02:42.6]} 2. c4 {[%clk 0:03:01.5]}
2... g6 {[%clk 0:02:43]} 3. Nc3 {[%clk 0:03:02.1]} 3... Bg7 {[%clk 0:02:44.9]}
4. e4 {[%clk 0:03:02.9]} 4... d6 {[%clk 0:02:45.8]} 5. Nf3 {[%clk 0:03:04.4]}
5... O-O {[%clk 0:02:47.1]} 6. h3 {[%clk 0:03:05.8]} 6... Na6 {[%clk 0:02:45.7]}
7. Be3 {[%clk 0:03:05.2]} 7... c5 {[%clk 0:02:45.3]} 8. d5 {[%clk 0:03:05.7]}
8... Rb8 {[%clk 0:02:37.6]} 9. Bd3 {[%clk 0:02:59]} 9... Bd7 {[%clk 0:02:37.3]}
10. O-O {[%clk 0:02:58.2]} 10... Nb4 {[%clk 0:02:37.8]} 11. Be2 {[%clk
0:02:48.1]} 11... Nh5 {[%clk 0:02:23.8]} 12. Qd2 {[%clk 0:02:39.2]} 12... e5
{[%clk 0:02:09]} 13. a3 {[%clk 0:02:18.3]} 13... Na6 {[%clk 0:02:08.3]} 14. Rfe1
{[%clk 0:02:15.5]} 14... Kh8 {[%clk 0:01:59.7]} 15. g4 {[%clk 0:02:04.4]} 15...
Nf6 {[%clk 0:01:55.9]} 16. Nh2 {[%clk 0:01:57.4]} 16... Nc7 {[%clk 0:01:55.7]}
17. a4 {[%clk 0:01:57]} 17... a6 {[%clk 0:01:36.9]} 18. f3 {[%clk 0:01:53.6]}
18... b5 {[%clk 0:01:36.2]} 19. axb5 {[%clk 0:01:52.4]} 19... axb5 {[%clk
0:01:36.4]} 20. b3 {[%clk 0:01:48.9]} 20... bxc4 {[%clk 0:01:26]} 21. bxc4
{[%clk 0:01:46.9]} 21... h5 {[%clk 0:01:20.7]} 22. Bg5 {[%clk 0:01:37.3]} 22...
Qc8 {[%clk 0:01:12.1]} 23. Kg2 {[%clk 0:01:28.4]} 23... hxg4 {[%clk 0:01:04.3]}
24. hxg4 {[%clk 0:01:26.1]} 24... Nh7 {[%clk 0:01:02.8]} 25. Bh6 {[%clk
0:01:20.4]} 25... f5 {[%clk 0:01:02.4]} 26. gxf5 {[%clk 0:01:15.4]} 26... gxf5
{[%clk 0:01:02.4]} 27. Bxg7+ {[%clk 0:01:16.1]} 27... Kxg7 {[%clk 0:00:52.8]}
28. Rg1 {[%clk 0:01:07.2]} 28... f4 {[%clk 0:00:53]} 29. Kf2+ {[%clk 0:01:07.4]}
29... Kf7 {[%clk 0:00:53.4]} 30. Ng4 {[%clk 0:01:06.5]} 30... Bxg4 {[%clk
0:00:49.6]} 31. Rxg4 {[%clk 0:01:08.4]} 31... Nf6 {[%clk 0:00:50.2]} 32. Rh4
{[%clk 0:01:07.4]} 32... Rh8 {[%clk 0:00:49.8]} 33. Rah1 {[%clk 0:01:07.2]}
33... Rxh4 {[%clk 0:00:50.7]} 34. Rxh4 {[%clk 0:01:09.1]} 34... Qg8 {[%clk
0:00:51.8]} 35. Qe1 {[%clk 0:00:59.4]} 35... Qg5 {[%clk 0:00:46]} 36. Kf1 {[%clk
0:00:58.6]} 36... Rg8 {[%clk 0:00:45.7]} 37. Qf2 {[%clk 0:00:57.7]} 37... Na6
{[%clk 0:00:44.6]} 38. Nb5 {[%clk 0:00:55.6]} 38... Ke7 {[%clk 0:00:43.5]} 39.
Qh2 {[%clk 0:00:55.3]} 39... Nb4 {[%clk 0:00:41.7]} 40. Rh8 {[%clk 0:00:45.7]}
40... Nc2 {[%clk 0:00:34.2]} 41. Rxg8 {[%clk 0:00:45.1]} 41... Qxg8 {[%clk
0:00:33.5]} 42. Qh3 {[%clk 0:00:40.4]} 42... Ne3+ {[%clk 0:00:33]} 43. Ke1
{[%clk 0:00:41.5]} 43... Qa8 {[%clk 0:00:30.2]} 44. Qe6+ {[%clk 0:00:39]} 44...
Kf8 {[%clk 0:00:09.3]} 45. Qxf6+ {[%clk 0:00:39.6]} 45... Kg8 {[%clk 0:00:10.2]}
46. Nxd6 {[%clk 0:00:32.9]} 46... Qa1+ {[%clk 0:00:07.7]} 47. Kf2 {[%clk
0:00:31.5]} 47... Qb2 {[%clk 0:00:09.6]} 48. Qf7+ {[%clk 0:00:27.9]} 48... Kh8
{[%clk 0:00:10.2]} 49. Qh5+ {[%clk 0:00:20.1]} 49... Kg7 {[%clk 0:00:10.3]} 50.
Qg5+ {[%clk 0:00:20.7]} 50... Kh7 {[%clk 0:00:10.7]} 51. Qh5+ {[%clk 0:00:17.1]}
51... Kg7 {[%clk 0:00:11.3]} 52. Qg5+ {[%clk 0:00:17.3]} 52... Kh7 {[%clk
0:00:12]} 53. Nf5 {[%clk 0:00:18.1]} 53... Nd1+ {[%clk 0:00:11]} 54. Ke1 {[%clk
0:00:17.9]} 54... Qc3+ {[%clk 0:00:06.6]} 55. Kxd1 {[%clk 0:00:18.7]} 55... Qa1+
{[%clk 0:00:06.8]} 56. Kd2 {[%clk 0:00:19.2]} 56... Qa5+ {[%clk 0:00:04.7]} 57.
Kc1 {[%clk 0:00:18.7]} 57... Qa1+ {[%clk 0:00:05.1]} 58. Kc2 {[%clk 0:00:20.3]}
58... Qa2+ {[%clk 0:00:05.4]} 59. Kd1 {[%clk 0:00:20.8]} 59... Qa4+ {[%clk
0:00:06.1]} 60. Kd2 {[%clk 0:00:21.8]} 60... Qa5+ {[%clk 0:00:06.4]} 61. Kd3
{[%clk 0:00:22]} 61... Qa3+ {[%clk 0:00:05.4]} 62. Kc2 {[%clk 0:00:23]} 62...
Qa2+ {[%clk 0:00:06.3]} 63. Kc1 {[%clk 0:00:21.3]} 63... Qa1+ {[%clk 0:00:07.3]}
64. Kd2 {[%clk 0:00:20.5]} 64... Qa5+ {[%clk 0:00:08]} 1/2-1/2

[Event "*** Titled Tuesday Blitz"]
[Site "Chess.com"]
[Date "2019.06.04"]
[Round "3"]
[White "slowdumbb"]
[Black "francyIM"]
[Result "1-0"]
[WhiteElo "2429"]
[BlackElo "2578"]
[TimeControl "180+2"]
[EndTime "13:39:36 PDT"]
[Termination "slowdumbb won by resignation"]

1. g3 {[%clk 0:03:01.9]} 1... d5 {[%clk 0:03:00.8]} 2. Bg2 {[%clk 0:03:03]} 2...
c5 {[%clk 0:03:02]} 3. Nf3 {[%clk 0:03:04.5]} 3... Nc6 {[%clk 0:03:03.3]} 4. O-O
{[%clk 0:03:06.1]} 4... e5 {[%clk 0:03:04.3]} 5. d3 {[%clk 0:03:07.7]} 5... Nf6
{[%clk 0:03:05.2]} 6. c4 {[%clk 0:03:09.1]} 6... d4 {[%clk 0:03:06]} 7. e3
{[%clk 0:03:10.2]} 7... Bd6 {[%clk 0:03:05.1]} 8. exd4 {[%clk 0:03:11.3]} 8...
cxd4 {[%clk 0:03:07]} 9. Re1 {[%clk 0:03:09.2]} 9... O-O {[%clk 0:03:07.2]} 10.
Nbd2 {[%clk 0:03:10.6]} 10... h6 {[%clk 0:03:05.9]} 11. Ne4 {[%clk 0:03:07.3]}
11... Nxe4 {[%clk 0:03:06.5]} 12. Rxe4 {[%clk 0:03:09.2]} 12... Bf5 {[%clk
0:03:05.8]} 13. Re1 {[%clk 0:03:10.2]} 13... Bh7 {[%clk 0:03:07.7]} 14. Nh4
{[%clk 0:03:08.4]} 14... Re8 {[%clk 0:03:07.8]} 15. Qg4 {[%clk 0:03:03.7]} 15...
Kh8 {[%clk 0:03:04]} 16. Be4 {[%clk 0:02:49.3]} 16... g6 {[%clk 0:03:02.6]} 17.
Bxc6 {[%clk 0:02:42.6]} 17... bxc6 {[%clk 0:03:02.2]} 18. Bxh6 {[%clk 0:02:44]}
18... Re6 {[%clk 0:02:58.6]} 19. Bg5 {[%clk 0:02:42.7]} 19... Qb6 {[%clk
0:02:56]} 20. Re2 {[%clk 0:02:33.4]} 20... a5 {[%clk 0:02:55.5]} 21. Rae1 {[%clk
0:02:20.4]} 21... Rae8 {[%clk 0:02:52.6]} 22. Kh1 {[%clk 0:01:32.3]} 22... a4
{[%clk 0:02:42]} 23. f4 {[%clk 0:01:27.4]} 23... f5 {[%clk 0:02:35.2]} 24. Qf3
{[%clk 0:01:24.3]} 24... e4 {[%clk 0:02:33.5]} 25. dxe4 {[%clk 0:01:24.5]} 25...
Qb4 {[%clk 0:02:29.2]} 26. exf5 {[%clk 0:00:47.8]} 26... Qxe1+ {[%clk
0:02:14.1]} 27. Rxe1 {[%clk 0:00:48.8]} 27... Rxe1+ {[%clk 0:02:16]} 28. Kg2
{[%clk 0:00:50]} 28... gxf5 {[%clk 0:02:16.2]} 29. Qxc6 {[%clk 0:00:39.9]} 29...
R1e6 {[%clk 0:02:13.7]} 30. Qd5 {[%clk 0:00:32.8]} 30... d3 {[%clk 0:02:10.3]}
31. Qxd3 {[%clk 0:00:30]} 31... Bf8 {[%clk 0:02:09.2]} 32. Nxf5 {[%clk 0:00:26]}
32... Re4 {[%clk 0:02:09.1]} 33. Qc3+ {[%clk 0:00:23.1]} 33... Kg8 {[%clk
0:02:08.5]} 34. Nh6+ {[%clk 0:00:21.5]} 34... Bxh6 {[%clk 0:02:08.6]} 35. Bxh6
{[%clk 0:00:23.4]} 35... Re2+ {[%clk 0:02:10.1]} 36. Kf3 {[%clk 0:00:23.2]}
36... R2e7 {[%clk 0:02:02.7]} 37. Qf6 {[%clk 0:00:20.2]} 37... Be4+ {[%clk
0:02:01.8]} 38. Kg4 {[%clk 0:00:20.8]} 38... Rf7 {[%clk 0:02:01.9]} 39. Qd4
{[%clk 0:00:20.1]} 39... Kh7 {[%clk 0:02:02.1]} 40. Bg5 {[%clk 0:00:20.3]} 40...
Bf5+ {[%clk 0:02:00.8]} 41. Kf3 {[%clk 0:00:19.2]} 41... Rd7 {[%clk 0:02:00.2]}
42. Qf6 {[%clk 0:00:17.3]} 42... Bg6 {[%clk 0:01:58.6]} 43. f5 {[%clk
0:00:15.8]} 43... Rd3+ {[%clk 0:01:59]} 44. Kg4 {[%clk 0:00:13.2]} 44... Re4+
{[%clk 0:01:50.8]} 45. Bf4 {[%clk 0:00:14.4]} 45... Be8 {[%clk 0:01:46.8]} 46.
Qh6+ {[%clk 0:00:09.2]} 46... Kg8 {[%clk 0:01:34.4]} 47. f6 {[%clk 0:00:10]}
47... Rd7 {[%clk 0:01:31.9]} 48. Qg5+ {[%clk 0:00:10.2]} 48... Kh8 {[%clk
0:01:28]} 49. Qh6+ {[%clk 0:00:09]} 49... Kg8 {[%clk 0:01:28.3]} 50. Qg5+ {[%clk
0:00:10]} 50... Kh8 {[%clk 0:01:28.7]} 51. Qf5 {[%clk 0:00:10.7]} 51... Red4
{[%clk 0:01:17.8]} 52. Kg5 {[%clk 0:00:11.3]} 52... Rh7 {[%clk 0:01:16.8]} 53.
g4 {[%clk 0:00:08.1]} 53... Rdd7 {[%clk 0:01:01]} 54. f7 {[%clk 0:00:06.7]}
54... Rdxf7 {[%clk 0:01:00.2]} 55. Be5+ {[%clk 0:00:07.9]} 55... Kg8 {[%clk
0:01:00.3]} 56. Qe6 {[%clk 0:00:06.4]} 56... Kf8 {[%clk 0:00:56.7]} 57. Bd6+
{[%clk 0:00:07.1]} 57... Re7 {[%clk 0:00:51.6]} 58. Qf6+ {[%clk 0:00:08]} 58...
Kg8 {[%clk 0:00:52.1]} 59. Bxe7 {[%clk 0:00:08.6]} 59... Rg7+ {[%clk 0:00:53.3]}
60. Kh4 {[%clk 0:00:08.8]} 60... Bd7 {[%clk 0:00:53.7]} 61. g5 {[%clk
0:00:08.7]} 61... Rf7 {[%clk 0:00:51.8]} 62. Qg6+ {[%clk 0:00:08]} 62... Rg7
{[%clk 0:00:52.6]} 63. Qd6 {[%clk 0:00:09.5]} 63... Bf5 {[%clk 0:00:50.5]} 64.
Bf6 {[%clk 0:00:09.7]} 64... Rh7+ {[%clk 0:00:50.7]} 65. Kg3 {[%clk 0:00:11]}
65... Bg6 {[%clk 0:00:51.1]} 66. Qd8+ {[%clk 0:00:11.3]} 66... Kf7 {[%clk
0:00:52.2]} 67. Qe7+ {[%clk 0:00:12.5]} 67... Kg8 {[%clk 0:00:53.6]} 68. Qe5
{[%clk 0:00:12.2]} 68... Rd7 {[%clk 0:00:53.1]} 69. c5 {[%clk 0:00:13]} 69...
Rd3+ {[%clk 0:00:53.3]} 70. Kf2 {[%clk 0:00:14.3]} 70... Rd2+ {[%clk 0:00:53]}
71. Ke3 {[%clk 0:00:13.2]} 71... Rd1 {[%clk 0:00:53.2]} 72. Qb8+ {[%clk
0:00:10]} 72... Kf7 {[%clk 0:00:50.7]} 73. Qc7+ {[%clk 0:00:10.2]} 73... Ke6
{[%clk 0:00:47.5]} 74. Qe5+ {[%clk 0:00:11.1]} 74... Kd7 {[%clk 0:00:47.1]} 75.
Qe7+ {[%clk 0:00:10.3]} 75... Kc6 {[%clk 0:00:48.3]} 76. Qe6+ {[%clk 0:00:11.8]}
76... Kb5 {[%clk 0:00:48.9]} 77. c6 {[%clk 0:00:11.2]} 77... Rd3+ {[%clk
0:00:47.5]} 78. Ke2 {[%clk 0:00:10]} 78... a3 {[%clk 0:00:44.8]} 79. c7 {[%clk
0:00:09.2]} 79... axb2 {[%clk 0:00:42.3]} 80. Bxb2 {[%clk 0:00:09.6]} 80... Bf5
{[%clk 0:00:41.3]} 81. Qxf5+ {[%clk 0:00:09]} 1-0

[Event "*** Titled Tuesday Blitz"]
[Site "Chess.com"]
[Date "2019.06.04"]
[Round "3"]
[White "pultineviciuspaulius"]
[Black "Alexander_Donchenko"]
[Result "1-0"]
[WhiteElo "2732"]
[BlackElo "2750"]
[TimeControl "180+2"]
[EndTime "13:39:49 PDT"]
[Termination "pultineviciuspaulius won by resignation"]

1. b3 {[%clk 0:03:01.9]} 1... Nf6 {[%clk 0:02:53.8]} 2. Bb2 {[%clk 0:03:02.8]}
2... g6 {[%clk 0:02:55.6]} 3. Nf3 {[%clk 0:03:00]} 3... Bg7 {[%clk 0:02:56.7]}
4. e3 {[%clk 0:03:01.8]} 4... O-O {[%clk 0:02:57.9]} 5. d4 {[%clk 0:03:03]} 5...
c5 {[%clk 0:02:58.7]} 6. dxc5 {[%clk 0:03:04.3]} 6... Na6 {[%clk 0:02:58.5]} 7.
Bxa6 {[%clk 0:02:59.4]} 7... bxa6 {[%clk 0:02:56.3]} 8. O-O {[%clk 0:02:58]}
8... Qc7 {[%clk 0:02:56.9]} 9. c3 {[%clk 0:02:58.5]} 9... Bb7 {[%clk 0:02:46.6]}
10. b4 {[%clk 0:02:50.6]} 10... Ng4 {[%clk 0:02:46.5]} 11. Nbd2 {[%clk
0:02:47.4]} 11... a5 {[%clk 0:02:40.9]} 12. Qc1 {[%clk 0:02:07]} 12... d6 {[%clk
0:02:11.4]} 13. h3 {[%clk 0:02:01.3]} 13... Nf6 {[%clk 0:02:12.4]} 14. cxd6
{[%clk 0:01:59.4]} 14... Qxd6 {[%clk 0:02:13.9]} 15. bxa5 {[%clk 0:01:43.5]}
15... Rac8 {[%clk 0:02:10.1]} 16. Rd1 {[%clk 0:01:41.8]} 16... Qc7 {[%clk
0:02:03.5]} 17. c4 {[%clk 0:01:38]} 17... Qxa5 {[%clk 0:02:00.5]} 18. Bd4 {[%clk
0:01:37.1]} 18... Rfd8 {[%clk 0:01:54.5]} 19. Qb2 {[%clk 0:01:35.8]} 19... Bxf3
{[%clk 0:01:50.9]} 20. Nxf3 {[%clk 0:01:34.1]} 20... Rxc4 {[%clk 0:01:50.8]} 21.
Rac1 {[%clk 0:01:15.1]} 21... Rxc1 {[%clk 0:01:41.9]} 22. Rxc1 {[%clk 0:01:17]}
22... Ne8 {[%clk 0:01:04]} 23. Qb7 {[%clk 0:01:01.8]} 23... Nd6 {[%clk 0:00:51]}
24. Qxa7 {[%clk 0:00:39.2]} 24... Qxa7 {[%clk 0:00:51.1]} 25. Bxa7 {[%clk
0:00:41.1]} 25... Ra8 {[%clk 0:00:52.1]} 26. Bc5 {[%clk 0:00:32.3]} 26... Rxa2
{[%clk 0:00:52.5]} 27. Bxd6 {[%clk 0:00:33.2]} 27... exd6 {[%clk 0:00:54.4]} 28.
Rc8+ {[%clk 0:00:33.1]} 28... Bf8 {[%clk 0:00:55.8]} 29. Nd4 {[%clk 0:00:34.7]}
29... Ra7 {[%clk 0:00:51.5]} 30. g4 {[%clk 0:00:34.2]} 30... Kg7 {[%clk
0:00:51.5]} 31. Kg2 {[%clk 0:00:34.8]} 31... Be7 {[%clk 0:00:50.9]} 32. Kf3
{[%clk 0:00:32.8]} 32... Bf6 {[%clk 0:00:51.3]} 33. Nb5 {[%clk 0:00:33.7]} 33...
Rd7 {[%clk 0:00:48.6]} 34. Rc6 {[%clk 0:00:30.4]} 34... d5 {[%clk 0:00:46.1]}
35. Rc2 {[%clk 0:00:13.4]} 35... Rb7 {[%clk 0:00:45.9]} 36. Nc7 {[%clk
0:00:13.3]} 36... d4 {[%clk 0:00:45.2]} 37. Ne8+ {[%clk 0:00:13.5]} 37... Kf8
{[%clk 0:00:41.8]} 38. Nxf6 {[%clk 0:00:15.4]} 38... Rb3 {[%clk 0:00:40]} 39.
Rd2 {[%clk 0:00:14.6]} 39... dxe3 {[%clk 0:00:39.9]} 40. fxe3 {[%clk 0:00:16.4]}
40... Kg7 {[%clk 0:00:40.9]} 41. Ne8+ {[%clk 0:00:16.7]} 41... Kf8 {[%clk
0:00:41.9]} 42. Nd6 {[%clk 0:00:18.6]} 42... Rb6 {[%clk 0:00:40.5]} 43. Ne4
{[%clk 0:00:18.7]} 43... Kg7 {[%clk 0:00:40.5]} 44. g5 {[%clk 0:00:20]} 44... h6
{[%clk 0:00:41.3]} 45. h4 {[%clk 0:00:21.3]} 45... hxg5 {[%clk 0:00:42.3]} 46.
hxg5 {[%clk 0:00:23.2]} 46... Rb5 {[%clk 0:00:42.4]} 47. Rd8 {[%clk 0:00:23.8]}
47... Rf5+ {[%clk 0:00:42.9]} 48. Kg4 {[%clk 0:00:24.7]} 48... Re5 {[%clk
0:00:41.2]} 49. Kf3 {[%clk 0:00:16.5]} 49... Rf5+ {[%clk 0:00:42.2]} 50. Ke2
{[%clk 0:00:17.3]} 50... Re5 {[%clk 0:00:43.1]} 51. Kd3 {[%clk 0:00:18.7]} 51...
Rf5 {[%clk 0:00:43.1]} 52. Kd4 {[%clk 0:00:19.5]} 52... Ra5 {[%clk 0:00:42.4]}
53. Rd5 {[%clk 0:00:20.8]} 53... Ra4+ {[%clk 0:00:43.5]} 54. Ke5 {[%clk
0:00:22.1]} 54... Ra3 {[%clk 0:00:44.6]} 55. Kf4 {[%clk 0:00:23.5]} 55... Ra4
{[%clk 0:00:45.1]} 56. Rd8 {[%clk 0:00:24.4]} 56... Ra5 {[%clk 0:00:46.1]} 57.
Ng3 {[%clk 0:00:17.8]} 57... Ra4+ {[%clk 0:00:42.9]} 58. e4 {[%clk 0:00:18.8]}
58... Ra2 {[%clk 0:00:42.1]} 59. Rd3 {[%clk 0:00:17.2]} 59... Ra4 {[%clk
0:00:42.5]} 60. Nf1 {[%clk 0:00:17.8]} 60... Ra2 {[%clk 0:00:42]} 61. Rf3 {[%clk
0:00:17.1]} 61... Ra4 {[%clk 0:00:42]} 62. Ne3 {[%clk 0:00:18.3]} 62... Rb4
{[%clk 0:00:41.1]} 63. Ng4 {[%clk 0:00:19.4]} 63... Ra4 {[%clk 0:00:41]} 64. Rd3
{[%clk 0:00:20.7]} 64... Ra1 {[%clk 0:00:39.1]} 65. Rd8 {[%clk 0:00:20]} 65...
Rf1+ {[%clk 0:00:39.5]} 66. Kg3 {[%clk 0:00:20.2]} 66... Rg1+ {[%clk 0:00:40.1]}
67. Kf3 {[%clk 0:00:21.4]} 67... Rf1+ {[%clk 0:00:17.8]} 68. Kg2 {[%clk
0:00:22]} 68... Rf4 {[%clk 0:00:17.9]} 69. Kg3 {[%clk 0:00:14]} 69... Rf1 {[%clk
0:00:15.8]} 70. e5 {[%clk 0:00:09.9]} 70... Rf5 {[%clk 0:00:16.2]} 71. Kh4
{[%clk 0:00:11.1]} 71... Rf4 {[%clk 0:00:17.2]} 72. Rd7 {[%clk 0:00:10.9]} 72...
Kf8 {[%clk 0:00:17.6]} 73. Kg3 {[%clk 0:00:09.7]} 73... Rf5 {[%clk 0:00:18.2]}
74. Kh4 {[%clk 0:00:10.9]} 74... Rf4 {[%clk 0:00:19.5]} 75. Ra7 {[%clk
0:00:12.1]} 75... Kg7 {[%clk 0:00:19.6]} 76. e6 {[%clk 0:00:12.2]} 76... Kf8
{[%clk 0:00:10.3]} 77. Rxf7+ {[%clk 0:00:09.2]} 1-0